Workbook

Sheet Лист1
A5: Остаток на 01.08.2012г. Расч.счет | D5: 705,229.48 | H5: Период с 01.08.2012г. по 31.07.2013г.
B6: касса | D6: 59,646.72
B7: ВСЕГО | D7: =SUM(D5:D6) -> 764,876.20
A10: ПОСТУПЛЕНИЕ ДЕНЕЖНЫХ СРЕДСТВ | H10: РАСХОД ДЕНЕЖНЫХ СРЕДСТВ
C12: кварт.плата | D12: прочие | E12: Всего | H12: Период с 01.08.2012г. по 31.07.2013г.
C13: Период с 01.08.2012г. по 31.07.2013г.
A14: Расчетнй счет | C14: =SUM(C15:C20) -> 2,819,234.74 | D14: =SUM(D15:D20) -> 322,481.94 | E14: =SUM(C14:D14) -> 3,141,716.68 | H14: Налоги | I14: 446,146.60
A15: в т.ч.: | B15: собственники | C15: 2,107,027.70 | D15: 1,204.80 | E15: =SUM(C15:D15) -> 2,108,232.50 | H15: Комиссия за услуги банка, почты | I15: 29,043.34
B16: ООО "Мегафон" | D16: 288,000.00 | E16: 288,000.00 | H16: Обучение, правовая помощь | I16: 18,000.00
B17: ООО "Капитал Плюс" | D17: 7,000.00 | E17: 7,000.00 | H17: Ремонт трубопровода,крыши | I17: 30,573.69
B18: ООО "Сахалин Телеком Лимитед" | D18: 1,277.14 | E18: 1,277.14 | H18: Техобслуживание, в т.ч. | I18: 657,101.57
B19: Возврат ошибочно перечисл.сумм | D19: 25,000.00 | E19: 25,000.00 | H19: Телефон | I19: 15,175.00
B20: сдача налички | C20: 712,207.04 | E20: 712,207.04 | H20: Электроэнергия | I20: 45,995.86
A21: Касса | C21: =SUM(C22:C24) -> 1,407,071.66 | D21: =SUM(D22:D24) -> 13,977.65 | E21: =SUM(E22:E24) -> 1,421,049.31 | H21: Обслуживание узла теплоэнергии | I21: 36,300.00
A22: в т.ч.: | B22: собственники | C22: 1,407,071.66 | D22: 1,200.00 | E22: =C22+D22 -> 1,408,271.66 | H22: Лифт | I22: 155,827.00
B23: прочие | D23: 3,000.00 | E23: =C23+D23 -> 3,000.00 | H23: ремонт оборудования | I23: 151,526.00
B24: п/отчет | D24: 9,777.65 | E24: =C24+D24 -> 9,777.65 | H24: Ремонтно-аварийное обслуживание | I24: 58,938.27
H25: вывоз и утилизация мусора | I25: 63,547.44
A26: ВСЕГО | C26: =C14+C21 -> 4,226,306.40 | D26: =D14+D21 -> 336,459.59 | E26: =E14+E21 -> 4,562,765.99 | H26: интернет-сайт, програмное обеспечение | I26: 90,092.00
H27: озеленение, благоустройство придомовой территории | I27: 39,700.00
H28: Комунальные платежи | I28: 1,667,147.58
H29: ВСЕГО по расч.счету | I29: =I14+I15+I16+I17+I18+I28 -> 2,848,012.78
H31: П/отчет | I31: 84,113.84
H32: З/плата | I32: 808,481.71
H33: Сдача налички | I33: 487,430.00
A34: остаток на 01.08.2013г. Расч.счет | C34: =D5+E14-I29 -> 998,933.38 | H34: ВСЕГО по кассе | I34: =SUM(I31:I33) -> 1,380,025.55
B35: касса | C35: =D6+E21-I34 -> 100,670.48
B36: ВСЕГО | C36: =SUM(C34:C35) -> 1,099,603.86 | H36: ИТОГО | I36: =I29+I34 -> 4,228,038.33

Sheet Лист2

Sheet Лист3
